[Event "Late-Titled-Tuesday-Blitz-January-30-2024"]
[Site "Chess.com"]
[Date "2024.01.30"]
[Round "4"]
[White "koziororo"]
[Black "Zhigalko_Sergei"]
[Result "0-1"]
[WhiteElo "2616"]
[BlackElo "2933"]
[TimeControl "180+1"]
[EndTime "14:37:30 PST"]
[Termination "Zhigalko_Sergei won by checkmate"]

1. e4 {[%clk 0:03:00.9]} 1... c5 {[%clk 0:02:58.5]} 2. Nf3 {[%clk 0:03:01.5]}
2... Nc6 {[%clk 0:02:58.6]} 3. Bb5 {[%clk 0:03:01.9]} 3... Nf6 {[%clk
0:02:58.6]} 4. Nc3 {[%clk 0:02:51.3]} 4... Qc7 {[%clk 0:02:58.3]} 5. O-O {[%clk
0:02:49.8]} 5... Nd4 {[%clk 0:02:57.7]} 6. Bd3 {[%clk 0:02:47.2]} 6... Ng4
{[%clk 0:02:56]} 7. g3 {[%clk 0:02:42.2]} 7... Nxf3+ {[%clk 0:02:56.2]} 8. Qxf3
{[%clk 0:02:43]} 8... Ne5 {[%clk 0:02:57.1]} 9. Qe2 {[%clk 0:02:42.5]} 9... c4
{[%clk 0:02:57]} 10. Nd5 {[%clk 0:02:28.3]} 10... Qc6 {[%clk 0:02:49]} 11. b4
{[%clk 0:02:03.2]} 11... cxd3 {[%clk 0:02:22.4]} 12. cxd3 {[%clk 0:02:04.1]}
12... e6 {[%clk 0:02:21.6]} 13. b5 {[%clk 0:02:03.3]} 13... Qd6 {[%clk
0:02:08.8]} 14. f4 {[%clk 0:01:27.3]} 14... exd5 {[%clk 0:02:02.7]} 15. fxe5
{[%clk 0:01:27.3]} 15... Qxe5 {[%clk 0:02:02.2]} 16. Rb1 {[%clk 0:01:27.7]}
16... Bc5+ {[%clk 0:01:53.8]} 17. Kh1 {[%clk 0:01:27.1]} 17... d6 {[%clk
0:01:52.8]} 18. d4 {[%clk 0:01:04.4]} 18... Bxd4 {[%clk 0:01:49.5]} 19. d3
{[%clk 0:01:04.4]} 19... dxe4 {[%clk 0:01:47.7]} 20. Bf4 {[%clk 0:01:04.8]}
20... Qe7 {[%clk 0:01:44.2]} 21. Qh5 {[%clk 0:00:59]} 21... O-O {[%clk
0:01:40.7]} 22. Rbe1 {[%clk 0:00:52.9]} 22... e3 {[%clk 0:01:08.9]} 23. Qd5
{[%clk 0:00:33.9]} 23... Bb6 {[%clk 0:01:09.1]} 24. d4 {[%clk 0:00:11.5]} 24...
Be6 {[%clk 0:01:00.8]} 25. Qe4 {[%clk 0:00:11.8]} 25... Qd7 {[%clk 0:00:59.4]}
26. Rxe3 {[%clk 0:00:10.6]} 26... Qxb5 {[%clk 0:00:59]} 27. Bxd6 {[%clk
0:00:09.3]} 27... Qxf1# {[%clk 0:00:57.6]} 0-1

[Event "Late-Titled-Tuesday-Blitz-January-30-2024"]
[Site "Chess.com"]
[Date "2024.01.30"]
[Round "4"]
[White "ahkashefi2800"]
[Black "TheMagician"]
[Result "1-0"]
[WhiteElo "2580"]
[BlackElo "2208"]
[TimeControl "180+1"]
[EndTime "14:37:32 PST"]
[Termination "ahkashefi2800 won on time"]

1. g3 {[%clk 0:02:59.7]} 1... d5 {[%clk 0:02:58.3]} 2. Bg2 {[%clk 0:03:00.6]}
2... c6 {[%clk 0:02:56.9]} 3. b3 {[%clk 0:02:59]} 3... e5 {[%clk 0:02:56.6]} 4.
Bb2 {[%clk 0:02:59.1]} 4... Bd6 {[%clk 0:02:56.3]} 5. c4 {[%clk 0:02:58]} 5...
d4 {[%clk 0:02:50.8]} 6. d3 {[%clk 0:02:56.7]} 6... Nf6 {[%clk 0:02:43.2]} 7.
Nf3 {[%clk 0:02:56.8]} 7... c5 {[%clk 0:02:41.8]} 8. b4 {[%clk 0:02:52.1]} 8...
cxb4 {[%clk 0:02:40.9]} 9. a3 {[%clk 0:02:52]} 9... bxa3 {[%clk 0:02:38.2]} 10.
Nxa3 {[%clk 0:02:50.1]} 10... Nc6 {[%clk 0:02:19.5]} 11. O-O {[%clk 0:02:43.7]}
11... O-O {[%clk 0:02:16.2]} 12. Nd2 {[%clk 0:02:35.4]} 12... Re8 {[%clk
0:02:02.6]} 13. Nb5 {[%clk 0:02:26.5]} 13... Bf8 {[%clk 0:02:00.8]} 14. Ba3
{[%clk 0:02:26.2]} 14... Bxa3 {[%clk 0:01:26.8]} 15. Nxa3 {[%clk 0:02:23.8]}
15... Bg4 {[%clk 0:01:19.8]} 16. Nb3 {[%clk 0:01:58]} 16... Qe7 {[%clk
0:01:08.9]} 17. Qd2 {[%clk 0:01:50]} 17... Rad8 {[%clk 0:01:06.8]} 18. Rfb1
{[%clk 0:01:48.6]} 18... e4 {[%clk 0:01:04.2]} 19. dxe4 {[%clk 0:01:45.6]} 19...
d3 {[%clk 0:00:56]} 20. exd3 {[%clk 0:01:39.6]} 20... Ne5 {[%clk 0:00:43.6]} 21.
d4 {[%clk 0:01:21.3]} 21... Nf3+ {[%clk 0:00:41.7]} 22. Bxf3 {[%clk 0:01:21]}
22... Bxf3 {[%clk 0:00:41.9]} 23. e5 {[%clk 0:01:21.4]} 23... Nd7 {[%clk
0:00:11.8]} 24. Qf4 {[%clk 0:01:20.9]} 24... Bh5 {[%clk 0:00:07.8]} 25. Na5
{[%clk 0:01:13.2]} 25... f6 {[%clk 0:00:06.3]} 26. exf6 {[%clk 0:01:11.1]} 26...
Nxf6 {[%clk 0:00:05.7]} 27. Rxb7 {[%clk 0:01:10.8]} 1-0

[Event "Late-Titled-Tuesday-Blitz-January-30-2024"]
[Site "Chess.com"]
[Date "2024.01.30"]
[Round "4"]
[White "PapaieDudu"]
[Black "SaqoChess_Twitch"]
[Result "0-1"]
[WhiteElo "2397"]
[BlackElo "2633"]
[TimeControl "180+1"]
[EndTime "14:37:36 PST"]
[Termination "SaqoChess_Twitch won by resignation"]

1. e4 {[%clk 0:03:00.9]} 1... c5 {[%clk 0:03:00]} 2. Nf3 {[%clk 0:03:00.6]} 2...
d6 {[%clk 0:03:00.4]} 3. d4 {[%clk 0:03:00.8]} 3... cxd4 {[%clk 0:03:01.3]} 4.
Nxd4 {[%clk 0:03:01.4]} 4... Nf6 {[%clk 0:03:02]} 5. Nc3 {[%clk 0:03:01.5]} 5...
g6 {[%clk 0:03:02.7]} 6. Bc4 {[%clk 0:02:56.6]} 6... Bg7 {[%clk 0:03:03]} 7. f3
{[%clk 0:02:56]} 7... O-O {[%clk 0:03:03.6]} 8. Be3 {[%clk 0:02:56.1]} 8... Nc6
{[%clk 0:03:04.2]} 9. Qd2 {[%clk 0:02:56.2]} 9... Bd7 {[%clk 0:03:04.9]} 10.
O-O-O {[%clk 0:02:56.5]} 10... Rc8 {[%clk 0:03:05.6]} 11. Bb3 {[%clk 0:02:51]}
11... Nxd4 {[%clk 0:03:05.6]} 12. Bxd4 {[%clk 0:02:50.3]} 12... b5 {[%clk
0:03:06.1]} 13. Kb1 {[%clk 0:02:43.1]} 13... a5 {[%clk 0:03:05.8]} 14. e5 {[%clk
0:02:22.4]} 14... dxe5 {[%clk 0:03:02.4]} 15. Bxe5 {[%clk 0:02:23]} 15... Bc6
{[%clk 0:02:53.8]} 16. Qe3 {[%clk 0:02:14.8]} 16... Qe8 {[%clk 0:02:52.1]} 17.
Bxf6 {[%clk 0:02:07.7]} 17... Bxf6 {[%clk 0:02:52.1]} 18. Nd5 {[%clk 0:02:05.8]}
18... Bxd5 {[%clk 0:02:52.1]} 19. Bxd5 {[%clk 0:02:02.8]} 19... e6 {[%clk
0:02:52.3]} 20. Be4 {[%clk 0:01:58.3]} 20... Qe7 {[%clk 0:02:52.8]} 21. Rd3
{[%clk 0:01:53]} 21... a4 {[%clk 0:02:47.5]} 22. h4 {[%clk 0:01:39.8]} 22... b4
{[%clk 0:02:43.9]} 23. h5 {[%clk 0:01:36.1]} 23... Bg7 {[%clk 0:02:41.8]} 24. h6
{[%clk 0:01:33.2]} 24... Bh8 {[%clk 0:02:41.3]} 25. Rhd1 {[%clk 0:01:32.8]}
25... Qf6 {[%clk 0:02:36.3]} 26. c3 {[%clk 0:01:11.8]} 26... a3 {[%clk
0:02:34.3]} 27. bxa3 {[%clk 0:01:02.6]} 27... bxc3 {[%clk 0:02:29.8]} 28. Kc2
{[%clk 0:00:57.7]} 28... Rb8 {[%clk 0:02:29.8]} 29. Rb1 {[%clk 0:00:57]} 29...
Rb2+ {[%clk 0:02:11.9]} 30. Rxb2 {[%clk 0:00:53.1]} 30... cxb2 {[%clk
0:02:12.8]} 31. Kb1 {[%clk 0:00:45.6]} 31... Rc8 {[%clk 0:02:12.5]} 32. Rd1
{[%clk 0:00:44.6]} 32... Qe5 {[%clk 0:02:03.2]} 33. Qd2 {[%clk 0:00:44]} 33...
Bf6 {[%clk 0:02:00.4]} 34. Qd7 {[%clk 0:00:34.2]} 34... Qc3 {[%clk 0:01:44.6]}
35. Qxc8+ {[%clk 0:00:11.6]} 35... Qxc8 {[%clk 0:01:44.1]} 36. a4 {[%clk
0:00:09.6]} 36... Kf8 {[%clk 0:01:43.3]} 37. a5 {[%clk 0:00:08.8]} 37... Qa6
{[%clk 0:01:43.6]} 38. g4 {[%clk 0:00:02.1]} 38... Qxa5 {[%clk 0:01:43.6]} 39.
f4 {[%clk 0:00:02.5]} 39... g5 {[%clk 0:01:43.7]} 40. Bxh7 {[%clk 0:00:01.9]}
40... gxf4 {[%clk 0:01:42.6]} 41. Bc2 {[%clk 0:00:02.5]} 41... Qg5 {[%clk
0:01:42]} 42. Rh1 {[%clk 0:00:02.7]} 42... Qd5 {[%clk 0:01:40.5]} 43. h7 {[%clk
0:00:02.7]} 43... Qxh1+ {[%clk 0:01:40.3]} 0-1

[Event "Late-Titled-Tuesday-Blitz-January-30-2024"]
[Site "Chess.com"]
[Date "2024.01.30"]
[Round "4"]
[White "cristiano78"]
[Black "subham777"]
[Result "0-1"]
[WhiteElo "2298"]
[BlackElo "2495"]
[TimeControl "180+1"]
[EndTime "14:37:39 PST"]
[Termination "subham777 won by resignation"]

1. d4 {[%clk 0:02:10.1]} 1... d5 {[%clk 0:02:58.9]} 2. c4 {[%clk 0:02:08]} 2...
e6 {[%clk 0:02:59.1]} 3. Nf3 {[%clk 0:02:07.6]} 3... Nf6 {[%clk 0:02:59.7]} 4.
Nc3 {[%clk 0:02:03.1]} 4... Be7 {[%clk 0:02:58.9]} 5. Bg5 {[%clk 0:02:00.9]}
5... O-O {[%clk 0:02:59.2]} 6. e3 {[%clk 0:02:00.9]} 6... Ne4 {[%clk 0:02:58.6]}
7. Bxe7 {[%clk 0:02:00]} 7... Qxe7 {[%clk 0:02:56.6]} 8. cxd5 {[%clk 0:01:59.1]}
8... Nxc3 {[%clk 0:02:56.2]} 9. bxc3 {[%clk 0:01:58.9]} 9... exd5 {[%clk
0:02:56]} 10. Qb3 {[%clk 0:01:59.6]} 10... c6 {[%clk 0:02:55.7]} 11. c4 {[%clk
0:01:58.7]} 11... dxc4 {[%clk 0:02:48]} 12. Bxc4 {[%clk 0:01:59.2]} 12... Nd7
{[%clk 0:02:47.6]} 13. O-O {[%clk 0:01:56.4]} 13... Nb6 {[%clk 0:02:46.3]} 14.
Be2 {[%clk 0:01:55.2]} 14... Be6 {[%clk 0:02:44.8]} 15. Qb2 {[%clk 0:01:55.3]}
15... Bc4 {[%clk 0:02:26.9]} 16. Rfc1 {[%clk 0:01:47.8]} 16... Bxe2 {[%clk
0:02:25.2]} 17. Qxe2 {[%clk 0:01:46.1]} 17... Rfe8 {[%clk 0:02:24.8]} 18. a4
{[%clk 0:01:43.1]} 18... a5 {[%clk 0:02:21.2]} 19. Ne5 {[%clk 0:01:33.2]} 19...
Rad8 {[%clk 0:02:08.9]} 20. Qb2 {[%clk 0:01:28.2]} 20... Nd5 {[%clk 0:02:01.4]}
21. Nc4 {[%clk 0:01:23.5]} 21... Qc7 {[%clk 0:01:27.9]} 22. Rab1 {[%clk
0:01:14.9]} 22... Nb4 {[%clk 0:01:21.2]} 23. Qd2 {[%clk 0:01:03.6]} 23... c5
{[%clk 0:01:16.7]} 24. Nxa5 {[%clk 0:00:56.3]} 24... Qxa5 {[%clk 0:01:13.9]} 25.
Rxc5 {[%clk 0:00:54.9]} 25... Qxc5 {[%clk 0:01:12.8]} 26. Rxb4 {[%clk
0:00:34.1]} 26... Qc6 {[%clk 0:01:09.2]} 27. g3 {[%clk 0:00:31.1]} 27... Rc8
{[%clk 0:01:07.5]} 28. Qb2 {[%clk 0:00:26.6]} 28... Qc1+ {[%clk 0:01:06.9]} 29.
Qxc1 {[%clk 0:00:24.5]} 29... Rxc1+ {[%clk 0:01:07.8]} 30. Kg2 {[%clk 0:00:25]}
30... Rc7 {[%clk 0:01:07.5]} 31. h4 {[%clk 0:00:22.8]} 31... h5 {[%clk
0:01:06.2]} 32. Rb5 {[%clk 0:00:21.9]} 32... g6 {[%clk 0:01:05.9]} 33. a5 {[%clk
0:00:21.3]} 33... Ra8 {[%clk 0:01:05.2]} 34. Kf3 {[%clk 0:00:19.5]} 34... Ra7
{[%clk 0:01:05.1]} 35. Ke4 {[%clk 0:00:19.4]} 35... Rc2 {[%clk 0:01:05.7]} 36.
f4 {[%clk 0:00:18.6]} 36... Ra2 {[%clk 0:01:06.1]} 0-1

[Event "Late-Titled-Tuesday-Blitz-January-30-2024"]
[Site "Chess.com"]
[Date "2024.01.30"]
[Round "4"]
[White "KaydenTroffChess"]
[Black "jefferyx"]
[Result "1-0"]
[WhiteElo "2864"]
[BlackElo "3013"]
[TimeControl "180+1"]
[EndTime "14:37:40 PST"]
[Termination "KaydenTroffChess won by resignation"]

1. d4 {[%clk 0:03:00.9]} 1... Nf6 {[%clk 0:03:00.1]} 2. Nf3 {[%clk 0:03:01.5]}
2... d5 {[%clk 0:02:59.4]} 3. Bf4 {[%clk 0:03:02.1]} 3... c5 {[%clk 0:02:58.7]}
4. e3 {[%clk 0:03:02.7]} 4... e6 {[%clk 0:02:58.4]} 5. Nc3 {[%clk 0:03:02.7]}
5... a6 {[%clk 0:02:55.5]} 6. Be2 {[%clk 0:03:00.4]} 6... b5 {[%clk 0:02:50.8]}
7. a3 {[%clk 0:02:55.3]} 7... Bb7 {[%clk 0:02:51]} 8. O-O {[%clk 0:02:55]} 8...
Nc6 {[%clk 0:02:51.2]} 9. Ne5 {[%clk 0:02:47.2]} 9... Qb6 {[%clk 0:02:51.1]} 10.
dxc5 {[%clk 0:02:38.2]} 10... Bxc5 {[%clk 0:02:50.4]} 11. b4 {[%clk 0:02:38.1]}
11... Be7 {[%clk 0:02:47.6]} 12. Bd3 {[%clk 0:02:17.7]} 12... O-O {[%clk
0:02:30.5]} 13. Rb1 {[%clk 0:02:10]} 13... Rfc8 {[%clk 0:01:54.2]} 14. Ne2
{[%clk 0:01:43.3]} 14... Nxe5 {[%clk 0:01:30.4]} 15. Bxe5 {[%clk 0:01:41.7]}
15... Nd7 {[%clk 0:01:31.1]} 16. Bd4 {[%clk 0:01:32.6]} 16... Qc7 {[%clk
0:01:31.1]} 17. f4 {[%clk 0:01:28.3]} 17... Nb6 {[%clk 0:01:23.2]} 18. Ng3
{[%clk 0:01:19.3]} 18... g6 {[%clk 0:01:11.1]} 19. Qg4 {[%clk 0:01:04.9]} 19...
f5 {[%clk 0:00:57.7]} 20. Nxf5 {[%clk 0:01:03.1]} 20... exf5 {[%clk 0:00:55.3]}
21. Bxf5 {[%clk 0:01:04]} 21... Nc4 {[%clk 0:00:06.9]} 22. Be6+ {[%clk
0:00:41.1]} 22... Kf8 {[%clk 0:00:07.2]} 23. f5 {[%clk 0:00:41.8]} 1-0

[Event "Late-Titled-Tuesday-Blitz-January-30-2024"]
[Site "Chess.com"]
[Date "2024.01.30"]
[Round "4"]
[White "Msb2"]
[Black "GMRafpig"]
[Result "1-0"]
[WhiteElo "3001"]
[BlackElo "2747"]
[TimeControl "180+1"]
[EndTime "14:37:43 PST"]
[Termination "Msb2 won by resignation"]

1. d4 {[%clk 0:03:00.9]} 1... Nf6 {[%clk 0:02:58.7]} 2. c4 {[%clk 0:03:01.3]}
2... e6 {[%clk 0:02:58.3]} 3. Nc3 {[%clk 0:03:01.6]} 3... d5 {[%clk 0:02:56.9]}
4. cxd5 {[%clk 0:03:01.7]} 4... exd5 {[%clk 0:02:55.3]} 5. Bg5 {[%clk
0:03:01.9]} 5... Be7 {[%clk 0:02:54.3]} 6. e3 {[%clk 0:03:02]} 6... c6 {[%clk
0:02:54.2]} 7. Bd3 {[%clk 0:03:02.5]} 7... h6 {[%clk 0:02:51.3]} 8. Bf4 {[%clk
0:03:01.9]} 8... Nbd7 {[%clk 0:02:49.7]} 9. h3 {[%clk 0:03:02.1]} 9... O-O
{[%clk 0:02:42.4]} 10. Nf3 {[%clk 0:03:01.5]} 10... Re8 {[%clk 0:02:40.1]} 11.
Qc2 {[%clk 0:03:01.5]} 11... b5 {[%clk 0:02:33.7]} 12. O-O {[%clk 0:02:57.2]}
12... Bb7 {[%clk 0:02:33]} 13. Rac1 {[%clk 0:02:56.9]} 13... a6 {[%clk
0:02:30.6]} 14. Rfd1 {[%clk 0:02:55.8]} 14... c5 {[%clk 0:02:29.6]} 15. dxc5
{[%clk 0:02:53.4]} 15... Nxc5 {[%clk 0:02:29.3]} 16. Qb1 {[%clk 0:02:47.1]}
16... Qb6 {[%clk 0:02:19.2]} 17. Ne2 {[%clk 0:02:41]} 17... Nxd3 {[%clk
0:02:04.9]} 18. Qxd3 {[%clk 0:02:41.9]} 18... Rac8 {[%clk 0:02:03.6]} 19. Be5
{[%clk 0:02:39]} 19... Rxc1 {[%clk 0:01:32.3]} 20. Rxc1 {[%clk 0:02:39.9]} 20...
Rc8 {[%clk 0:01:26.4]} 21. Rxc8+ {[%clk 0:02:39]} 21... Bxc8 {[%clk 0:01:27.3]}
22. Nf4 {[%clk 0:02:36.6]} 22... Qc6 {[%clk 0:01:24.9]} 23. Kh2 {[%clk
0:02:21.5]} 23... Qc4 {[%clk 0:01:19.5]} 24. Qd4 {[%clk 0:01:55.7]} 24... Qxd4
{[%clk 0:01:08.1]} 25. Nxd4 {[%clk 0:01:56.6]} 25... Bb7 {[%clk 0:01:06.4]} 26.
Nf5 {[%clk 0:01:53.6]} 26... Kf8 {[%clk 0:01:03]} 27. Nxe7 {[%clk 0:01:33.9]}
27... Kxe7 {[%clk 0:01:02.4]} 28. Bxf6+ {[%clk 0:01:34.2]} 28... Kxf6 {[%clk
0:01:02.5]} 29. Ne2 {[%clk 0:01:34.4]} 29... Ke5 {[%clk 0:00:55.1]} 30. f3
{[%clk 0:01:34.5]} 30... g5 {[%clk 0:00:54.6]} 31. Kg3 {[%clk 0:01:24.3]} 31...
b4 {[%clk 0:00:52.7]} 32. Kf2 {[%clk 0:01:18.1]} 32... f5 {[%clk 0:00:51.5]} 33.
g3 {[%clk 0:01:17.3]} 33... a5 {[%clk 0:00:51.2]} 34. a3 {[%clk 0:01:16.4]}
34... bxa3 {[%clk 0:00:49.9]} 35. bxa3 {[%clk 0:01:17.3]} 35... Ba6 {[%clk
0:00:46.4]} 36. Nd4 {[%clk 0:01:17.6]} 36... Bb7 {[%clk 0:00:40.6]} 37. Nb3
{[%clk 0:01:02.9]} 37... a4 {[%clk 0:00:39.8]} 38. Nc5 {[%clk 0:01:03.5]} 38...
Bc6 {[%clk 0:00:39.7]} 39. Nd3+ {[%clk 0:01:04]} 39... Kd6 {[%clk 0:00:38.9]}
40. f4 {[%clk 0:01:04.4]} 40... d4 {[%clk 0:00:34.3]} 41. exd4 {[%clk
0:01:04.1]} 41... Kd5 {[%clk 0:00:32.9]} 42. Nb4+ {[%clk 0:01:04.3]} 1-0

[Event "Late-Titled-Tuesday-Blitz-January-30-2024"]
[Site "Chess.com"]
[Date "2024.01.30"]
[Round "4"]
[White "aghasiyevkamal"]
[Black "PoXerStar"]
[Result "1-0"]
[WhiteElo "2646"]
[BlackElo "2434"]
[TimeControl "180+1"]
[EndTime "14:37:44 PST"]
[Termination "aghasiyevkamal won by resignation"]

1. d4 {[%clk 0:03:00.4]} 1... Nf6 {[%clk 0:02:58.3]} 2. c4 {[%clk 0:03:00.6]}
2... c5 {[%clk 0:02:58.9]} 3. d5 {[%clk 0:02:59.6]} 3... g6 {[%clk 0:02:59.2]}
4. Nc3 {[%clk 0:02:59.5]} 4... Bg7 {[%clk 0:02:59.4]} 5. e4 {[%clk 0:02:59.6]}
5... d6 {[%clk 0:02:59.8]} 6. Bd3 {[%clk 0:02:59.4]} 6... O-O {[%clk 0:02:59.8]}
7. h3 {[%clk 0:03:00]} 7... e6 {[%clk 0:03:00.4]} 8. Nf3 {[%clk 0:03:00]} 8...
exd5 {[%clk 0:03:01]} 9. exd5 {[%clk 0:02:53.2]} 9... Re8+ {[%clk 0:03:00.9]}
10. Be3 {[%clk 0:02:53.5]} 10... Rxe3+ {[%clk 0:02:38.5]} 11. fxe3 {[%clk
0:02:52.9]} 11... Qe7 {[%clk 0:02:39.4]} 12. e4 {[%clk 0:02:43.4]} 12... Nh5
{[%clk 0:01:56.7]} 13. O-O {[%clk 0:02:42.4]} 13... Nd7 {[%clk 0:01:55.8]} 14.
Qd2 {[%clk 0:02:35.1]} 14... Ne5 {[%clk 0:01:55.6]} 15. Nxe5 {[%clk 0:02:34.8]}
15... Bxe5 {[%clk 0:01:56.5]} 16. Ne2 {[%clk 0:02:32.6]} 16... Bd7 {[%clk
0:01:43.1]} 17. Rf3 {[%clk 0:02:32.3]} 17... Rb8 {[%clk 0:01:34.3]} 18. Raf1
{[%clk 0:02:31.3]} 18... f6 {[%clk 0:01:34.5]} 19. Nc1 {[%clk 0:02:13.6]} 19...
b5 {[%clk 0:01:32.8]} 20. cxb5 {[%clk 0:02:11.8]} 20... Bxb5 {[%clk 0:01:33.7]}
21. Bxb5 {[%clk 0:02:11.8]} 21... Rxb5 {[%clk 0:01:33.9]} 22. b3 {[%clk
0:02:12.3]} 22... Bd4+ {[%clk 0:01:19.6]} 23. Kh1 {[%clk 0:02:12.5]} 23... Qxe4
{[%clk 0:01:19.6]} 24. Re1 {[%clk 0:02:09.3]} 24... Qh4 {[%clk 0:01:13.5]} 25.
Re8+ {[%clk 0:02:03]} 25... Kf7 {[%clk 0:01:13]} 26. Qe2 {[%clk 0:02:00.5]}
26... Rb7 {[%clk 0:01:01.3]} 27. Qe6+ {[%clk 0:01:51.8]} 27... Kg7 {[%clk
0:01:01.6]} 28. Qg8+ {[%clk 0:01:51.3]} 28... Kh6 {[%clk 0:01:00.4]} 29. Qf8+
{[%clk 0:01:51]} 29... Rg7 {[%clk 0:00:45.3]} 30. Nd3 {[%clk 0:01:39.2]} 30...
f5 {[%clk 0:00:18]} 31. Qxd6 {[%clk 0:01:21.4]} 31... f4 {[%clk 0:00:18]} 32.
Nxf4 {[%clk 0:01:11.6]} 32... Rf7 {[%clk 0:00:18.3]} 33. Nxg6 {[%clk 0:01:03.2]}
33... Rf6 {[%clk 0:00:15.5]} 34. Nxh4 {[%clk 0:01:01.3]} 34... Rxd6 {[%clk
0:00:14.9]} 35. Nf5+ {[%clk 0:01:01.6]} 1-0

[Event "Late-Titled-Tuesday-Blitz-January-30-2024"]
[Site "Chess.com"]
[Date "2024.01.30"]
[Round "4"]
[White "Alexander_Donchenko"]
[Black "Adar_07"]
[Result "1-0"]
[WhiteElo "2934"]
[BlackElo "2669"]
[TimeControl "180+1"]
[EndTime "14:37:47 PST"]
[Termination "Alexander_Donchenko won by resignation"]

1. Nf3 {[%clk 0:03:00.9]} 1... Nf6 {[%clk 0:02:59.3]} 2. g3 {[%clk 0:03:01.5]}
2... g6 {[%clk 0:02:59.5]} 3. Bg2 {[%clk 0:03:02.2]} 3... Bg7 {[%clk 0:03:00.2]}
4. O-O {[%clk 0:03:03]} 4... O-O {[%clk 0:03:00.8]} 5. d4 {[%clk 0:03:03.7]}
5... d5 {[%clk 0:02:59.7]} 6. c4 {[%clk 0:03:03.6]} 6... c6 {[%clk 0:03:00.4]}
7. b3 {[%clk 0:03:02.1]} 7... b6 {[%clk 0:02:49.5]} 8. Nc3 {[%clk 0:03:01.4]}
8... Ba6 {[%clk 0:02:49.3]} 9. Ne5 {[%clk 0:02:57.3]} 9... Nfd7 {[%clk 0:02:48]}
10. Nxd7 {[%clk 0:02:53.7]} 10... Nxd7 {[%clk 0:02:45.1]} 11. cxd5 {[%clk
0:02:54.6]} 11... cxd5 {[%clk 0:02:45.2]} 12. Nxd5 {[%clk 0:02:54.4]} 12... Rc8
{[%clk 0:02:45]} 13. Nb4 {[%clk 0:02:50.1]} 13... Bb5 {[%clk 0:02:18.3]} 14. a4
{[%clk 0:02:49.7]} 14... a5 {[%clk 0:02:18.5]} 15. axb5 {[%clk 0:02:49.8]} 15...
axb4 {[%clk 0:02:18.9]} 16. Ra7 {[%clk 0:02:43]} 16... e5 {[%clk 0:02:15.4]} 17.
Bc6 {[%clk 0:02:34.4]} 17... Nb8 {[%clk 0:02:13.2]} 18. d5 {[%clk 0:02:34.4]}
18... Qd6 {[%clk 0:02:02.6]} 19. Be3 {[%clk 0:02:30.3]} 19... f5 {[%clk
0:01:45.8]} 20. Bxb6 {[%clk 0:02:27]} 20... e4 {[%clk 0:01:46.3]} 21. Bd4 {[%clk
0:01:58.5]} 21... Be5 {[%clk 0:01:45.4]} 22. Qa1 {[%clk 0:01:55]} 22... Nxc6
{[%clk 0:01:32.4]} 23. bxc6 {[%clk 0:01:51.4]} 23... Rfe8 {[%clk 0:01:32.6]} 24.
Rd7 {[%clk 0:01:48.2]} 24... Qf6 {[%clk 0:01:27.4]} 25. Bxe5 {[%clk 0:01:48.5]}
25... Rxe5 {[%clk 0:01:27.7]} 26. Rc1 {[%clk 0:01:45.2]} 26... f4 {[%clk
0:01:27.6]} 27. c7 {[%clk 0:01:39]} 27... e3 {[%clk 0:01:24.9]} 28. Rd8+ {[%clk
0:01:33.8]} 28... Kg7 {[%clk 0:01:19]} 29. Rxc8 {[%clk 0:01:29.2]} 29... exf2+
{[%clk 0:01:18.9]} 30. Kf1 {[%clk 0:01:29.3]} 30... fxg3 {[%clk 0:01:03.9]} 31.
Rg8+ {[%clk 0:01:06.5]} 31... Kh6 {[%clk 0:00:59.4]} 32. c8=Q {[%clk 0:01:06.6]}
32... g2+ {[%clk 0:00:13.5]} 33. Kxg2 {[%clk 0:01:06.7]} 33... Rg5+ {[%clk
0:00:11.6]} 34. Kh1 {[%clk 0:01:04]} 34... Qf4 {[%clk 0:00:05.3]} 35. Qf8+
{[%clk 0:01:02.3]} 35... Kh5 {[%clk 0:00:04.2]} 1-0

[Event "Late-Titled-Tuesday-Blitz-January-30-2024"]
[Site "Chess.com"]
[Date "2024.01.30"]
[Round "4"]
[White "toninhojit"]
[Black "brm72"]
[Result "1/2-1/2"]
[WhiteElo "2511"]
[BlackElo "2688"]
[TimeControl "180+1"]
[EndTime "14:37:53 PST"]
[Termination "Game drawn by repetition"]

1. d4 {[%clk 0:03:00.9]} 1... Nf6 {[%clk 0:02:58.6]} 2. c4 {[%clk 0:03:01.2]}
2... e6 {[%clk 0:02:58.6]} 3. Nf3 {[%clk 0:03:01.6]} 3... c5 {[%clk 0:02:58.9]}
4. e3 {[%clk 0:02:59.9]} 4... cxd4 {[%clk 0:02:58.7]} 5. exd4 {[%clk 0:02:59.8]}
5... d5 {[%clk 0:02:59.3]} 6. Nc3 {[%clk 0:02:58.3]} 6... Bb4 {[%clk 0:02:59.3]}
7. Bd3 {[%clk 0:02:53.3]} 7... dxc4 {[%clk 0:02:58.9]} 8. Bxc4 {[%clk
0:02:53.7]} 8... O-O {[%clk 0:02:59.6]} 9. O-O {[%clk 0:02:53.9]} 9... Nc6
{[%clk 0:02:58.8]} 10. Be3 {[%clk 0:02:50.7]} 10... b6 {[%clk 0:02:57.7]} 11. a3
{[%clk 0:02:46.3]} 11... Be7 {[%clk 0:02:57]} 12. Qe2 {[%clk 0:02:42.2]} 12...
Bb7 {[%clk 0:02:55.5]} 13. Rfd1 {[%clk 0:02:42.7]} 13... Rc8 {[%clk 0:02:53.2]}
14. d5 {[%clk 0:02:35.3]} 14... exd5 {[%clk 0:02:48.2]} 15. Nxd5 {[%clk
0:02:33.3]} 15... Nxd5 {[%clk 0:02:48.3]} 16. Bxd5 {[%clk 0:02:34.2]} 16... Qc7
{[%clk 0:02:48.3]} 17. Rac1 {[%clk 0:02:32.4]} 17... Bf6 {[%clk 0:02:47.6]} 18.
Qc4 {[%clk 0:02:11.7]} 18... Qb8 {[%clk 0:02:28.3]} 19. Qe4 {[%clk 0:01:26.1]}
19... Rfe8 {[%clk 0:02:19.8]} 20. Qf5 {[%clk 0:01:26.3]} 20... Ne7 {[%clk
0:02:17.9]} 21. Bxf7+ {[%clk 0:01:16.7]} 21... Kxf7 {[%clk 0:02:09.9]} 22. Ng5+
{[%clk 0:01:15.6]} 22... Kf8 {[%clk 0:01:33.4]} 23. Nxh7+ {[%clk 0:01:12.5]}
23... Kf7 {[%clk 0:01:23.3]} 24. Ng5+ {[%clk 0:01:05.4]} 24... Kf8 {[%clk
0:01:22.5]} 25. Nh7+ {[%clk 0:00:37.8]} 25... Kf7 {[%clk 0:01:18.5]} 26. Ng5+
{[%clk 0:00:29.2]} 26... Kg8 {[%clk 0:00:41.9]} 27. Qe6+ {[%clk 0:00:28.6]}
27... Kh8 {[%clk 0:00:40.2]} 28. Qh3+ {[%clk 0:00:23.1]} 28... Kg8 {[%clk
0:00:40.1]} 29. Qe6+ {[%clk 0:00:18.3]} 29... Kh8 {[%clk 0:00:40.3]} 30. Qh3+
{[%clk 0:00:13.9]} 30... Kg8 {[%clk 0:00:40.4]} 31. Qe6+ {[%clk 0:00:11.8]}
1/2-1/2